Cogmind - Beta 16.1 @@@ ROGUE MODE // 2026.03.25 @ 13:58:25 Player: Elxavo Result: Destroyed by S-10 Pest with Light Assault Rifle Performance ------------- Evolutions (0) 0 Regions Visited (1) 200 Robots Destroyed (18) 90 Value Destroyed (431) 431 Prototype IDs (2) 40 Alien Tech Used (0) 0 Bonus (0) 0 TOTAL SCORE: 761 Bonus ------- None Cogmind --------- Core Integrity 0/250 Matter 300/300 Energy 99/100 System Corruption 0% Temperature Cool (0) Movement Core (350) Ox6 Location -10/Materials Parts ------- > --- POWER (1) -------- (None) > --- PROPULSION (2) --- (None) > --- UTILITY (2) ------ Large Storage Unit Signal Interpreter > --- WEAPON (2) ------- (None) > --- INVENTORY (15) --- Light Treads Aluminum Leg Aluminum Leg Aluminum Leg Wheel Hover Unit Hover Unit Sensor Array Targeting Computer Weapon Shielding Light Armor Plating Mining Laser Peak State ------------ > --- POWER ------------ Ion Engine > --- PROPULSION ------- Light Treads Light Treads > --- UTILITY ---------- Large Storage Unit Improved Terrain Scanner > --- WEAPON ----------- Beam Cannon Assault Rifle > --- INVENTORY -------- Light Ion Engine Light Treads Aluminum Leg Aluminum Leg Aluminum Leg Aluminum Leg Wheel Sensor Array EM Pulse Gun Mining Laser [Rating: 10] Favorites ----------- Power Ion Engine Engine Ion Engine Propulsion Light Treads Treads Light Treads Leg Aluminum Leg Utility Large Storage Unit Device Improved Terrain Scanner Storage Large Storage Unit Processor Signal Interpreter Weapon Beam Cannon Energy Gun EM Pulse Gun Energy Cannon Beam Cannon Ballistic Gun Assault Rifle Special Weapon Mining Laser Build | -11 -10 ------- Run | Yrd Mat Slots Evolved . | . . Power . | . . Propulsion . | . . Utility . | . . Weapon . | . . Parts Attached 17 | 7 10 Power 3 | 1 2 Engine 3 | 1 2 Core . | . . Reactor . | . . Propulsion 4 | 2 2 Treads 2 | 2 . Leg 2 | . 2 Wheel . | . . Hover . | . . Flight . | . . Utility 5 | 2 3 Device 1 | 1 . Storage 2 | 1 1 Processor 2 | . 2 Hackware . | . . Protection . | . . Artifact . | . . Weapon 5 | 2 3 Energy Gun 2 | 1 1 Energy Cannon 1 | . 1 Ballistic Gun 1 | 1 . Ballistic Cannon . | . . Launcher . | . . Special Weapon 1 | . 1 Impact Weapon . | . . Slashing Weapon . | . . Piercing Weapon . | . . Special Melee Weapon . | . . Unidentified Prototypes . | . . Parts Lost 10 | . 10 Power 3 | . 3 Propulsion 4 | . 4 Utility . | . . Weapon 3 | . 3 Highest Loss Streak 5 | . 5 To Critical Strikes . | . . Average Backups 9 | 4 9 Power . | . . Propulsion 5 | 3 5 Utility 1 | . 1 Weapon 1 | 1 1 Tool/Special . | . . Unused Backups 13 | . 13 Power . | . . Propulsion 9 | . 9 Utility 4 | . 4 Weapon . | . . Tool/Special . | . . Average Slot Usage (%) 93 | . 93 Engine 9 | . 9 Treads 17 | . 17 Leg 9 | . 9 Device 8 | . 8 Storage 14 | . 14 Processor 5 | . 5 Energy Gun 5 | . 5 Energy Cannon 12 | . 12 Ballistic Gun 8 | . 8 Peak Build Rating 10 | 9 10 Average Rating 8 | 6 8 On Entrance 4 | . 9 Avg Prop Armor Cover (%) . | . . Naked Turns . | . . Heaviest Build 31 | 14 31 Greatest Support 40 | 40 40 Greatest Overweight (x) 6 | . 6 Average Overweight (x) . | . . Largest Inventory Capacity 15 | 8 15 Average Capacity 12 | 7 13 Most Carried 14 | 8 14 Average Carried 9 | 5 9 Final Capacity 15 | 8 15 Final Carried 12 | 8 12 Class Distribution -------------------- 100% | Mutant Dominant Class ---------------- Mutant | -10/Materials Resources | -11 -10 ----------- Run | Yrd Mat Matter Collected 515 | 279 236 Remotely . | . . Salvage Created 586 | 89 497 Parts 39 | 6 33 Haulers Intercepted 1 | . 1 Recyclers Shooed . | . . Parts Field Recycled . | . . Retrieved Matter . | . . Parts Self-Destructed . | . . Prevented . | . . Parts Restored . | . . Kills | -11 -10 ------- Run | Yrd Mat Combat Hostiles Destroyed 11 | . 11 Guns 4 | . 4 Cannons 7 | . 7 Classes Destroyed 7 | 2 5 Builder 1 | . 1 Tunneler 1 | 1 . Hauler 1 | . 1 Recycler 1 | 1 . Watcher 3 | . 3 Swarmer 1 | . 1 Grunt 10 | . 10 Best Kill Streak 4 | 1 4 Combat Bots Only 3 | . 3 Max Kills in Single Turn 2 | 1 2 Gunslinging . | . . Exploded . | . . Melee . | . . Uniques/NPCs Destroyed . | . . Combat | -11 -10 -------- Run | Yrd Mat Hostile Shots Fired 158 | . 158 Missed 32 | . 32 Hits 126 | . 126 Projectile 126 | . 126 Damage Taken 1305 | . 1305 Core 257 | . 257 Absorbed by Shields . | . . Core Remaining (%) 100 | 100 . Volleys Fired 58 | 3 55 Largest 2 | 2 2 Hottest 100 | 60 100 Shots Fired 92 | 6 86 Gun 56 | 6 50 Cannon 35 | . 35 Launcher . | . . Special 1 | . 1 Kinetic 41 | 3 38 Thermal 39 | 3 36 Explosive . | . . Electromagnetic 12 | . 12 Robot Hit Streak 17 | 2 17 Robot Miss Streak 5 | 3 5 Penetration Max . | . . Secondary Targets . | . . Shots Hit Robots 58 | 3 55 Core Hits 26 | 3 23 Critical Kills . | . . Critical Parts Destroyed 1 | . 1 Critical Strikes 1 | . 1 Destroy 1 | . 1 Melee Attacks . | . . Impact . | . . Slashing . | . . Piercing . | . . Sneak Attacks . | . . Combat Hostiles . | . . Follow-up Attacks . | . . Damage Inflicted 950 | 42 908 Guns 476 | 42 434 Cannons 403 | . 403 Explosions 64 | . 64 Melee . | . . Ramming 7 | . 7 Kinetic 384 | 30 354 Thermal 479 | 12 467 Explosive . | . . Electromagnetic 80 | . 80 Impact . | . . Slashing . | . . Piercing . | . . Highest Corruption . | . . Average Corruption . | . . Corruption Purged . | . . Corruption Blocked . | . . Overload Shots . | . . Overflow Damage . | . . Projectiles . | . . Explosions . | . . Melee . | . . Knockbacks . | . . Impact . | . . Kinetic . | . . Secondary . | . . Self-Inflicted Damage 21 | . 21 Shots 1 | . 1 Rammed . | . . Targets Rammed 1 | . 1 Kicked 1 | . 1 Crushed . | . . Highest Temperature 352 | . 352 Average Temperature 108 | . 108 Received Heat Transfer 495 | . 495 Effects 2 | . 2 Matter Decay 1 | . 1 Short Circuit 1 | . 1 Siege Activations . | . . Martial Activations . | . . Shielding Activations . | . . Robots Disrupted . | . . Combat Hostiles . | . . Robots Corrupted . | . . Combat Hostiles . | . . Parts Fried . | . . Impact Corruptions . | . . Robots Melted . | . . Combat Hostiles . | . . Parts Melted 3 | . 3 Heat Transferred 926 | 25 901 Parts Sabotaged . | . . Parts Stolen . | . . Parts Stripped . | . . Power Chain Reactions 1 | . 1 Alert | -11 -10 ------- Run | Yrd Mat Maximum Alert Level . | . . Low Security (%) 100 | 100 100 Level 1 . | . . Level 2 . | . . Level 3 . | . . Level 4 . | . . Level 5 . | . . High Security . | . . Max Security . | . . Peak Influence 68 | 5 68 Initial . | . . Average 9 | . 11 Influence Increases 307 | 10 297 Destroy 0b10 Robot/C 220 | . 220 Destroy 0b10 Robot/NC 35 | 10 25 Destroy Leader 38 | . 38 Successful Hack 9 | . 9 Destroy Structure 5 | . 5 Influence Decreases 305 | 10 295 Time Decay 205 | 10 195 Lost Part 100 | . 100 Squads Dispatched 2 | . 2 Investigation 2 | . 2 Extermination . | . . Reinforcement . | . . Assault . | . . Garrison . | . . Intercept . | . . Searches Triggered . | . . Construction Impeded . | . . Haulers Reinforced . | . . Active Scanning Responses . | . . Cargo Convoy Interrupts . | . . Stealth | -11 -10 --------- Run | Yrd Mat Distress Signals . | . . Communications Jammed . | . . Distress Signals . | . . Times Spotted 22 | . 22 Peak Tracking Total 6 | . 6 Tactical Retreats . | . . Traps | -11 -10 ------- Run | Yrd Mat Traps Triggered 2 | . 2 Indirectly . | . . Trap Hack Attempts . | . . Triggered . | . . Disarmed . | . . Reprogrammed . | . . Reused . | . . Traps Extracted . | . . Installed . | . . Triggered . | . . Machines | -11 -10 ---------- Run | Yrd Mat Machines Disabled . | . . Max in Single Turn . | . . Machines Repaired . | . . Machines Dismantled . | . . Machines Sabotaged . | . . Overloaded Fab Kills . | . . Hacking | -11 -10 --------- Run | Yrd Mat Machines Accessed 5 | . 5 Terminals 4 | . 4 Fabricators . | . . Repair Stations . | . . Recycling Units 1 | . 1 Scanalyzers . | . . Garrison Access . | . . Total Hacks 16 | . 16 Successful 5 | . 5 Failed 11 | . 11 Catastrophic 2 | . 2 Database Lockouts . | . . Manual . | . . Terminals 14 | . 14 Fabricators . | . . Repair Stations . | . . Recycling Units 2 | . 2 Scanalyzers . | . . Garrison Access . | . . Terminal Hacks 4 | . 4 Record 2 | . 2 Prototype ID Bank 1 | . 1 Registered Components 1 | . 1 Fabricator Hacks . | . . Repair Station Hacks . | . . Recycling Unit Hacks 1 | . 1 Report Inventory 1 | . 1 Scanalyzer . | . . Garrison Access Hacks . | . . Unauthorized Hacks . | . . Terminals . | . . Fabricators . | . . Repair Stations . | . . Recycling Units . | . . Scanalyzers . | . . Garrison Access . | . . Data Cores Recovered . | . . Used . | . . Hacking Detections 5 | . 5 Full Trace Events . | . . Feedback Events . | . . Feedback Blocked . | . . Robot Schematics Acquired . | . . Robots Built . | . . Authchips . | . . Time . | . . Total Robot Build Rating . | . . Part Schematics Acquired . | . . Parts Built . | . . Authchips . | . . Time . | . . Total Part Build Rating . | . . Part Studies Acquired . | . . Parts Repaired . | . . Time . | . . Parts Recycled . | . . Recycled Matter . | . . Retrieved Matter . | . . Retrieved Components . | . . Parts Scanalyzed . | . . Part Schematics Acquired . | . . Parts Damaged . | . . Bothacking | -11 -10 ------------ Run | Yrd Mat Used RIF Installer . | . . Robots Hacked . | . . Non-combat . | . . Combat . | . . Robot Hacks Applied . | . . Relay Couplers Released . | . . Fabnet Peak Effective % . | . . Robots Rewired . | . . Allies Hacked . | . . Hacks Repelled . | . . Allies | -11 -10 -------- Run | Yrd Mat Total Allies . | . . Largest Group . | . . Highest-Rated Group . | . . Highest-Rated Ally . | . . Total Orders . | . . Ally Attacks . | . . Total Damage . | . . Kills . | . . Allies Corrupted . | . . Allies Melted . | . . Intel | -11 -10 ------- Run | Yrd Mat Active Infowar (turns) 655 | 58 597 Terrain 655 | 58 597 Robot Analysis Total . | . . Derelict Logs Recovered . | . . Drone Launches . | . . Drone Recoveries . | . . Exploration | -11 -10 ------------- Run | Yrd Mat Turns Passed 1200 | 164 1036 Spaces Moved 577 | 87 490 Core 6 | 5 1 Treads 423 | 82 341 Legs 148 | . 148 Wheels . | . . Hover . | . . Flight . | . . Fastest Speed 50 | 50 160 Average Speed 167 | 153 169 Slowest Speed 350 | 160 350 Overloaded Moves . | . . Propulsion Burnouts . | . . Robots Hopped . | . . Potential Cave-ins . | . . Cave-ins Triggered . | . . Exploration Rate (%) 37 | 4 71 Regions Visited 1 Branch Regions . Pre-discovered Areas . | . . Known Exits Taken . | . . Unknown Exits Taken 1 | 1 . Scrap Searched . | . . Spaces Dug 1 | . 1 Terrain Destroyed 4 | . 4 Melee . | . . Projectile 1 | . 1 AOE 3 | . 3 Terrain Rammed . | . . Walls Destroyed . | . . Machines Disabled . | . . Actions | -11 -10 --------- Run | Yrd Mat Total 720 | 111 609 Wait 33 | . 33 Move 576 | 86 490 Hop . | . . Pick Up 28 | 15 13 Fast Attach 1 | . 1 Attach 14 | 7 7 Detach . | . . Swap 3 | . 3 Drop 6 | . 6 Fire 58 | 3 55 Melee . | . . Ram . | . . Kick 1 | . 1 Crush . | . . Escape Stasis . | . . Rewire . | . . Trap . | . . Miscellaneous . | . . Route ------- -11/Scrapyard -10/Materials (discovered 2 exits: *Mat x2) History --------- Turn | Location | Event 6 | -11/Scrapyard | Discovered new exit (range 15) 165 | -11/Scrapyard | Entered Materials 307 | -10/Materials | Build established: Mutant 495 | -10/Materials | Discovered new exit (range 9) 864 | -10/Materials | Discovered new exit (range 10) 869 | -10/Materials | Lost 5 parts (2p2n1w) 887 | -10/Materials | Identified exit to Materials 1169 | -10/Materials | Core integrity fell below 50% 1192 | -10/Materials | Core integrity fell below 20% 1201 | -10/Materials | Destroyed by S-10 Pest with Light Assault Rifle Last Messages --------------- 01157_ K-01 Serf collects debris. 01170_ EM Pulse Gun destroyed. 01173_ K-01 Serf collects debris. 01179_ U-05 Engineer builds a Wall. 01179_ K-01 Serf collects debris. 01181_ Acquired 5 matter. 01182_ K-01 Serf collects debris. 01183_ U-05 Engineer lays Concrete. 01183_ K-01 Serf cleans the TF Node. 01183_ S-10 Pest destroyed. 01184_ U-05 Engineer lays Concrete. 01186_ Beam Cannon destroyed. 01186_ U-05 Engineer lays Concrete. 01188_ K-01 Serf collects debris. 01188_ Aluminum Leg destroyed. 01189_ U-05 Engineer lays Concrete. 01193_ U-05 Engineer builds a Wall. 01194_ U-05 Engineer lays Concrete. 01196_ Ion Engine destroyed. 01200_ Aluminum Leg destroyed. Map ----- +----------------------------------------------------+ | ?#??# #????# ??????????????????????? | | ????# ###### #????????????????????? | | ????# ## # """ #????????????????????? | | ????# ## < # """"" #????????????????????? | | #???#!! ## # """"" #????????????????????? | | #???#!! ## + """"" #????????????????????? | | ????# ! ## # """ #????????????????????? | | ??#?# ! ## # #?????? ##???????????? | | #???# % ## ###########?????? ???????????? | | ########+##### #??????????????? #??????????? | | %% ! #??????????????# #??????????? | | ! T #??????????????# #?"""#? ??? | | #??#???????????# ##"T"## ???? | | ###/###### # #??????????????# ???? | | # ## ################?????# ???? | | # """ ## #?# ??????# ** " ???? | | # """ ## #?# """ """ #?????# * ""????? | | # """ ## #?# """ """ #???### ""????? | | # ## #?# """ """ #####"" """ ???? | | # """ ## #?# % # !##"T "" ??? | | # """ ## ########+####### !#"" """ ???? | | # """ ## #???#?# !#?# """ ??#? | | # ## ####### !#?# ! """ ! #? | | # ## % !#?# " + | | # ## %############ !##?# #? | | ########## ########?###@ ####### #? | | ??#??????# # """ #??# ##### # #? | | #######??# # """ #??# su=% # #? | | ##?# # """ #??# s!s%s " #? | | """#?## # #??# [ks![[ #?? | | """##?# # #??# ##### #??? | | """#?## + #??#######???#######????##+##? | | #??# ###########?#???????????????????????? | | #??# # #?????????????????????????? | | #######??# # !! #?????#???????????????????? | | ##??###?## # !! #?????????????????????????? | | ????????## + #???#?????????????????????? | | ?????????# #############???????????????????????? | | ########## ####### #???#?#?????????????????? | | ^ #?????#?????????????????? | | ^ #???????????????????????? | | ##?????????#????????????? | | #################### #??#???????#????????????? | | "" #?????##??#??## ##???#???????????????????? | | Y" #????##???????# #??????#?????????????????? | | ##????#???????# #??#??#??????????????????? | | """ #???????###??## #?#?????#???????????????!? | | """"" ##????#??###### #?#########??????????????? | | """"" #??####### #?# ! #?#??#??????????? | | """"" #??# + #?# #???????????????? | +----------------------------------------------------+ Best States ------------- Heat Dissipation 25 Energy Generation 10 Energy Capacity 250 Matter Stores 300 Matter Capacity 300 Sight Range 16 Terrain Scan Range 16 Terrain Scan Density 10 Evasion (%) 40 Recoil Reduction 2 Item Schematics ----------------- None Robot Schematics ------------------ None Fabricated ------------ Nothing Repaired ---------- Nothing Studied --------- None Alien Tech Used ----------------- None Achievements -------------- None Challenges ------------ None Game ------ Seed RagnarokDisruptionCycler Manual? 0 Play Time 00:15:56 Cumulative 47.0 hours Start 2026.03.25 @ 13:42:19 End 2026.03.25 @ 13:58:25 Sessions 1 Manual Loads 0 Difficulty Rogue Special Mode None Game No. 60 Rogue 60 Adventurer 0 Explorer 0 Win Type - Total 0 Types 0/0/0/0/0/0/0/0/0/0 Lore% 24 Gallery% 19 Achievement% 12 Wizard Run 0 Options --------- Layout 0 ASCII 0 Keyboard 0 Movement Mouse Keybinds 0 Fullscreen 1 Font 18/SmallcapsGlow Map View 76x50 Zoom Use 0% Tactical HUD 1 Map Filters NONE Filters LOW_CONTRAST(13,24,33) Steam 1 RUN: a28eadcb-d826-43c8-bb36-a9524e375919